Workbook

Sheet Pažyma pildymui biudžetinėms
A1: ATKREIPIAME DĖMESĮ ! 1. Lentelėje turi būti pildomi tik balti laukeliai (pagal PĮP informaciją) 2. Užpildę formą, išsaugokite ją MS Excel bylos formatu (.xlsx). Per DMS galima pateikti šį dokumentą tik .xlsx formatu | O1: F-PRV-PV-11(ES(2021-2027)/02
F2: PAŽYMA DARBO UŽMOKESČIO APSKAIČIAVIMUI | O2: 1
B4: Pareiškėjo / Jungtinio projekto pareiškėjo / projekto partnerio pavadinimas (partneriai pildo atskiras lenteles, kiek patnerių, tiek lentelių) | V4: 0.1725
V5: 0.1889
B6: INFORMACIJA APIE PLANUOJAMĄ DARBO UŽMOKESTĮ (DU) | V6: 0.2002
B7: Organizacijos tipas (1) | H7: Biudžetinė | I7: =+IF(H7="Biudžetinė",0.0014,IF(H7="Verslo įm. ir kt.",0.0046,IF(H7="Kitos organizacijos**",0.003,0))) -> 0.0014
B9: Eil. Nr. | C9: Projekto poveiklės Nr. (iš PĮP) | D9: Veiksmo / išlaidų tipo Nr. (iš PĮP) | E9: Pareigos PĮP | F9: Planuojamas etatų/ darbuotojų skaičius projekte | G9: Darbo sutarties tipas (nuo tipo priklauso įmokos tarifas Nedarbo socialiniam draudimui) | H9: Metai, už kuriuos planuojamas DU (pildoma, jei taikomas padidėjimas) | I9: Planuojamų mėn. / valandų skaičius (palikti taikomą) | J9: Planuojamas pareiginis DU/ valandinis įkainis, Eur (palikti taikomą) (2) | K9: Priedai ir priemokos, Eur (3) | L9: Padidėjimas, proc. (jei taikoma) (4) | M9: Padidėjimo suma, Eur (jei taikoma) | N9: Planuojamas DU įkainis be darbdavio įmokų iš viso, Eur | O9: Planuojams DU įkainis, Eur (su darbdavio įmokomis) | P9: Darbo savaitės trukmė darbo dienomis | Q9: Kasmetinių atostogų darbo dienų skaičius | R9: Nustatyta kasmetinių atostogų išmokų fiksuotoji norma | S9: Planuojamos kasmetinių atostogų sąnaudos (įskaitant darbdavio įmokas), Eur | T9: Planuojamas DU įkainis iš viso, Eur (su darbdavio įmokomis ir kasm. atost. ) | U9: Planuojama DU suma iš viso, Eur | V9: DU įkainio pagrindimas (5)
B12: 1 | C12: 2 | D12: 3 | E12: 4 | F12: 5 | G12: 6 | H12: 7 | I12: 8 | J12: 9 | K12: 10 | L12: 11 | M12: 12 | N12: 13=9+10+12 | O12: 14 | P12: 15 | Q12: 16 | R12: 17 | S12: 18 | T12: 19=14+18 | U12: 20=5*8*19 | V12: 21
B13: =ROW(A1) -> 1 | M13: =(+J13+K13)*L13 -> 0 | N13: =ROUND(J13+K13+M13,2) -> 0 | O13: =ROUND(IF($I$7=0%,0,(IF(G13="Terminuota",(1+$I$7+0.0203)*(J13+K13+M13),(1+$I$7+0.0131)*(J13+K13+M13)))),2) -> 0 | R13: =IF(OR(P13="",Q13=""),"",VLOOKUP(CONCATENATE(P13," dienų darbo savaitė"),'Atostogų išmokų FN'!$A$7:$AH$8,Q13-16)/100) ->  | S13: =IF(O13=0,0,ROUND((O13*R13),2)) -> 0 | T13: =SUM(O13+S13) -> 0 | U13: =SUM(F13*I13*T13) -> 0
B14: =ROW(A2) -> 2 | M14: 0 | N14: =ROUND(J14+K14+M14,2) -> 0 | O14: 0 | R14: =IF(OR(P14="",Q14=""),"",VLOOKUP(CONCATENATE(P14," dienų darbo savaitė"),'Atostogų išmokų FN'!$A$7:$AH$8,Q14-16)/100) ->  | S14: 0 | T14: =SUM(O14+S14) -> 0 | U14: 0
B15: 3 | M15: 0 | N15: 0 | O15: 0 | R15: =IF(OR(P15="",Q15=""),"",VLOOKUP(CONCATENATE(P15," dienų darbo savaitė"),'Atostogų išmokų FN'!$A$7:$AH$8,Q15-16)/100) ->  | S15: 0 | T15: 0 | U15: 0
B16: =ROW(A4) -> 4 | M16: =(+J16+K16)*L16 -> 0 | N16: =ROUND(J16+K16+M16,2) -> 0 | O16: =ROUND(IF($I$7=0%,0,(IF(G16="Terminuota",(1+$I$7+0.0203)*(J16+K16+M16),(1+$I$7+0.0131)*(J16+K16+M16)))),2) -> 0 | R16: =IF(OR(P16="",Q16=""),"",VLOOKUP(CONCATENATE(P16," dienų darbo savaitė"),'Atostogų išmokų FN'!$A$7:$AH$8,Q16-16)/100) ->  | S16: =IF(O16=0,0,ROUND((O16*R16),2)) -> 0 | T16: =SUM(O16+S16) -> 0 | U16: =SUM(F16*I16*T16) -> 0
B17: 5 | M17: 0 | N17: 0 | O17: 0 | R17: =IF(OR(P17="",Q17=""),"",VLOOKUP(CONCATENATE(P17," dienų darbo savaitė"),'Atostogų išmokų FN'!$A$7:$AH$8,Q17-16)/100) ->  | S17: 0 | T17: 0 | U17: 0
B18: 6 | M18: 0 | N18: 0 | O18: 0 | R18: =IF(OR(P18="",Q18=""),"",VLOOKUP(CONCATENATE(P18," dienų darbo savaitė"),'Atostogų išmokų FN'!$A$7:$AH$8,Q18-16)/100) ->  | S18: 0 | T18: 0 | U18: 0
B19: 7 | M19: 0 | N19: 0 | O19: 0 | R19: =IF(OR(P19="",Q19=""),"",VLOOKUP(CONCATENATE(P19," dienų darbo savaitė"),'Atostogų išmokų FN'!$A$7:$AH$8,Q19-16)/100) ->  | S19: 0 | T19: 0 | U19: 0
B20: 8 | M20: 0 | N20: 0 | O20: 0 | R20: =IF(OR(P20="",Q20=""),"",VLOOKUP(CONCATENATE(P20," dienų darbo savaitė"),'Atostogų išmokų FN'!$A$7:$AH$8,Q20-16)/100) ->  | S20: 0 | T20: 0 | U20: 0
B21: =ROW(A9) -> 9 | M21: =(+J21+K21)*L21 -> 0 | N21: =ROUND(J21+K21+M21,2) -> 0 | O21: =ROUND(IF($I$7=0%,0,(IF(G21="Terminuota",(1+$I$7+0.0203)*(J21+K21+M21),(1+$I$7+0.0131)*(J21+K21+M21)))),2) -> 0 | R21: =IF(OR(P21="",Q21=""),"",VLOOKUP(CONCATENATE(P21," dienų darbo savaitė"),'Atostogų išmokų FN'!$A$7:$AH$8,Q21-16)/100) ->  | S21: =IF(O21=0,0,ROUND((O21*R21),2)) -> 0 | T21: =SUM(O21+S21) -> 0 | U21: =SUM(F21*I21*T21) -> 0
B22: 10 | M22: 0 | N22: 0 | O22: 0 | R22: =IF(OR(P22="",Q22=""),"",VLOOKUP(CONCATENATE(P22," dienų darbo savaitė"),'Atostogų išmokų FN'!$A$7:$AH$8,Q22-16)/100) ->  | S22: 0 | T22: 0 | U22: 0
B23: Iš viso: | I23: =SUBTOTAL(9, INDIRECT(ADDRESS(13, COLUMN()) & ":" & ADDRESS(ROW() - 1, COLUMN()))) -> 0 | J23: =SUBTOTAL(9, INDIRECT(ADDRESS(13, COLUMN()) & ":" & ADDRESS(ROW() - 1, COLUMN()))) -> 0 | K23: =SUBTOTAL(9, INDIRECT(ADDRESS(13, COLUMN()) & ":" & ADDRESS(ROW() - 1, COLUMN()))) -> 0 | M23: =SUBTOTAL(9, INDIRECT(ADDRESS(13, COLUMN()) & ":" & ADDRESS(ROW() - 1, COLUMN()))) -> 0 | N23: =SUBTOTAL(9, INDIRECT(ADDRESS(13, COLUMN()) & ":" & ADDRESS(ROW() - 1, COLUMN()))) -> 0 | O23: =SUBTOTAL(9, INDIRECT(ADDRESS(13, COLUMN()) & ":" & ADDRESS(ROW() - 1, COLUMN()))) -> 0 | S23: =SUBTOTAL(9, INDIRECT(ADDRESS(13, COLUMN()) & ":" & ADDRESS(ROW() - 1, COLUMN()))) -> 0 | U23: =SUBTOTAL(9, INDIRECT(ADDRESS(13, COLUMN()) & ":" & ADDRESS(ROW() - 1, COLUMN()))) -> 0
B25: (1) Atsižvelgiant į organizacijos tipą, nurodomas bendras įmokų tarifas Garantiniam fondui, Ilgalaikio darbo išmokų fondui ir Nelaimingų atsitikimų darbe ir profesinių ligų socialiniam draudimui.
B26: (2) Pareiginė alga apskaičiuojama pareiginės algos koeficientą dauginant iš pareiginės algos (atlyginimo) bazinio dydžio, kuris pavyzdžiui 2024 m. yra 1 785,4 euro. Šiame langelyje įrašykite taikomą koeficiento dydį x pareiginės algos (atlyginimo) bazinis dydį.
B27: (3) Jei mokamas priedas ar priemoka, nurodyti pagrindą bei pakomentuoti, už ką konkrečiai (išskyrus netinkamas išlaidas, nurodytas Rekomendacijų dėl projektų išlaidų atitikties Europos Sąjungos fondų reikalavimų 9.5. p.). Jei projekte įdarbinami valstybės tarnautojai, nurodyti taikomą priemokos dydį, kuris turėtų neviršyti LR valstybės tarnybos įstatyme numatytų dydžių.
B28: https://www.e-tar.lt/portal/lt/legalAct/TAR.D3ED3792F52B/asr
B29: (4) Skaičiuojant planuojamą darbo valandos (mėnesio) įkainį gali būti įvertinamas numatomas įkainio kitimas projekto įgyvendinimo metu, remiantis Lietuvos banko interneto svetainėje lb.lt skelbiamomis naujausiomis darbo užmokesčio prognozėmis. Tačiau įgyvendinant projektą darbo užmokesčio padidėjimas turi būti pagrįstas ir visais atvejais atitikti Projektų administravimo ir finansavimo taisyklių 301.1 papunkčio reikalavimus (netaikoma einamiesiems metams):
B30: https://www.lb.lt/lt/mv-ekonomikos-analize-ir-prognozes
B31: (5) Biudžetinių įstaigų atvejais - pagrįsti, ar suplanuotoms pareigybėms nustatytas darbo užmokesčio dydis atitinka LR valstybės ir savivaldybių įstaigų darbuotojų darbo apmokėjimo ir komisijos narių atlygio darbą įstatyme ar kt.:
B32: https://www.e-tar.lt/portal/lt/legalAct/2d8b78b0e79411e68503b67e3b82e8bd/asr
B33: Jei viršija koeficientą, pateikti papildomą pagrindimą (pvz.: pareigybės įtrauktos į trūkstamų pareigybių sąrašą (nurodant profesijos pavadinimą arba kodą iš sąrašo) arba kt.)
B34: https://www.e-tar.lt/portal/lt/legalAct/57268900f6ef11e89fcaa4a4a9822176/asr
B35: Jei įstaigoje nėra projekte numatomos pareigybės atitikmens ir istorinių duomenų, DU dydžiai turi būti pagrįsti analogiškų ar panašių pareigybių/funkcijų DU dydžiais, kurie įprastai mokami įstaigoje. Aaa

Sheet Pažyma pildymui kitoms
A1: ATKREIPIAME DĖMESĮ ! 1. Lentelėje turi būti pildomi tik balti laukeliai (pagal PĮP informaciją) 2. Užpildę formą, išsaugokite ją MS Excel bylos formatu (.xlsx). Per DMS galima pateikti šį dokumentą tik .xlsx formatu | N1: F-PRV-PV-11(ES(2021-2027)/02
F2: PAŽYMA DARBO UŽMOKESČIO APSKAIČIAVIMUI | S2: 1
Y3: 0.1235
B4: Pareiškėjo / Jungtinio projekto pareiškėjo / projekto partnerio pavadinimas (partneriai pildo atskiras lenteles, kiek patnerių, tiek lentelių) | Y4: 0.1725
B6: INFORMACIJA APIE PLANUOJAMĄ DARBO UŽMOKESTĮ (DU) | Y6: 0.2002
B7: Organizacijos tipas (1) | I7: Verslo įm. ir kt.(2) | J7: =+IF(I7="Biudžetinė",0.0014,IF(I7="Verslo įm. ir kt.(2)",0.0046,IF(I7="Kitos organizacijos(3)",0.003,0))) -> 0.0046
B9: Eil. Nr. | C9: Projekto poveiklės Nr. (iš PĮP) | D9: Veiksmo / išlaidų tipo Nr. (iš PĮP) | E9: Pareigos PĮP | F9: Pareigos / Pareigybė įstaigoje, kurios duomenimis grindžiamas įkainis (4) | G9: Planuojamas etatų/ darbuotojų skaičius projekte | H9: Darbo sutarties tipas (nuo tipo priklauso įmokos tarifas Nedarbo socialiniam draudimui) | I9: Metai, už kuriuos planuojamas DU (pildoma, jei taikomas padidėjimas) | J9: Planuojamų mėn. / valandų skaičius | K9: Planuojamas pareiginis DU/ valandinis įkainis, Eur | L9: Priedai ir priemokos, Eur (5) | M9: Padidėjimas, proc. (jei taikoma) (6) | N9: Padidėjimo suma, Eur (jei taikoma) | Q9: Planuojamas DU įkainis be darbdavio įmokų iš viso, Eur | R9: Planuojams DU įkainis su darbdavio įmokomis iš viso, Eur | S9: Darbo savaitės trukmė darbo dienomis | T9: Kasmetinių atostogų darbo dienų skaičius | U9: Nustatyta kasmetinių atostogų išmokų fiksuotoji norma | V9: Planuojamos kasmetinių atostogų sąnaudos (įskaitant darbdavio įmokas), Eur | W9: Planuojamas DU įkainis iš viso, Eur (su darbdavio įmokomis ir kasm. atost. ) | X9: Planuojama DU suma iš viso, Eur | Y9: DU įkainio pagrindimas (7)
B12: 1 | C12: 2 | D12: 3 | E12: 4 | F12: 5 | G12: 6 | H12: 7 | I12: 8 | J12: 9 | K12: 10 | L12: 11 | M12: 12 | N12: 13 | O12: 15 | P12: 16 | Q12: 14=10+11+13 | R12: 15 | S12: 16 | T12: 17 | U12: 18 | V12: 19 | W12: 20=15+19 | X12: 21=6*9*20 | Y12: 22
B13: =ROW(A1) -> 1 | N13: =ROUND((+K13+L13)*M13,2) -> 0 | Q13: =ROUND(K13+L13+N13+O13+P13,2) -> 0 | R13: =ROUND(IF($J$7=0%,0,(IF(H13="Terminuota",(1+$J$7+0.0203)*(K13+L13+N13+P13+O13),(1+$J$7+0.0131)*(K13+L13+N13+P13+O13)))),2) -> 0 | U13: =IF(OR(S13="",T13=""),"",VLOOKUP(CONCATENATE(S13," dienų darbo savaitė"),'Atostogų išmokų FN'!$A$7:$AH$8,T13-16)/100) ->  | V13: =IF(R13=0,0,ROUND((R13*U13),2)) -> 0 | W13: =SUM(R13+V13) -> 0 | X13: =SUM(G13*J13*W13) -> 0
B14: =ROW(A2) -> 2 | N14: =ROUND((+K14+L14)*M14,2) -> 0 | Q14: =ROUND(K14+L14+N14+O14+P14,2) -> 0 | R14: =ROUND(IF($J$7=0%,0,(IF(H14="Terminuota",(1+$J$7+0.0203)*(K14+L14+N14+P14+O14),(1+$J$7+0.0131)*(K14+L14+N14+P14+O14)))),2) -> 0 | U14: =IF(OR(S14="",T14=""),"",VLOOKUP(CONCATENATE(S14," dienų darbo savaitė"),'Atostogų išmokų FN'!$A$7:$AH$8,T14-16)/100) ->  | V14: 0 | W14: 0 | X14: =SUM(G14*J14*W14) -> 0
B15: =ROW(A3) -> 3 | N15: =ROUND((+K15+L15)*M15,2) -> 0 | Q15: =ROUND(K15+L15+N15+O15+P15,2) -> 0 | R15: =ROUND(IF($J$7=0%,0,(IF(H15="Terminuota",(1+$J$7+0.0203)*(K15+L15+N15+P15+O15),(1+$J$7+0.0131)*(K15+L15+N15+P15+O15)))),2) -> 0 | U15: =IF(OR(S15="",T15=""),"",VLOOKUP(CONCATENATE(S15," dienų darbo savaitė"),'Atostogų išmokų FN'!$A$7:$AH$8,T15-16)/100) ->  | V15: 0 | W15: 0 | X15: =SUM(G15*J15*W15) -> 0
B16: =ROW(A4) -> 4 | N16: =ROUND((+K16+L16)*M16,2) -> 0 | Q16: =ROUND(K16+L16+N16+O16+P16,2) -> 0 | R16: =ROUND(IF($J$7=0%,0,(IF(H16="Terminuota",(1+$J$7+0.0203)*(K16+L16+N16+P16+O16),(1+$J$7+0.0131)*(K16+L16+N16+P16+O16)))),2) -> 0 | U16: =IF(OR(S16="",T16=""),"",VLOOKUP(CONCATENATE(S16," dienų darbo savaitė"),'Atostogų išmokų FN'!$A$7:$AH$8,T16-16)/100) ->  | V16: =IF(R16=0,0,ROUND((R16*U16),2)) -> 0 | W16: =SUM(R16+V16) -> 0 | X16: =SUM(G16*J16*W16) -> 0
B17: 5 | N17: 0 | Q17: 0 | R17: 0 | U17: =IF(OR(S17="",T17=""),"",VLOOKUP(CONCATENATE(S17," dienų darbo savaitė"),'Atostogų išmokų FN'!$A$7:$AH$8,T17-16)/100) ->  | V17: 0 | W17: 0 | X17: 0
B18: 6 | N18: =ROUND((+K18+L18)*M18,2) -> 0 | Q18: =ROUND(K18+L18+N18+O18+P18,2) -> 0 | R18: =ROUND(IF($J$7=0%,0,(IF(H18="Terminuota",(1+$J$7+0.0203)*(K18+L18+N18+P18+O18),(1+$J$7+0.0131)*(K18+L18+N18+P18+O18)))),2) -> 0 | U18: =IF(OR(S18="",T18=""),"",VLOOKUP(CONCATENATE(S18," dienų darbo savaitė"),'Atostogų išmokų FN'!$A$7:$AH$8,T18-16)/100) ->  | V18: =IF(R18=0,0,ROUND((R18*U18),2)) -> 0 | W18: =SUM(R18+V18) -> 0 | X18: =SUM(G18*J18*W18) -> 0
B19: 7 | N19: 0 | Q19: 0 | R19: 0 | U19: =IF(OR(S19="",T19=""),"",VLOOKUP(CONCATENATE(S19," dienų darbo savaitė"),'Atostogų išmokų FN'!$A$7:$AH$8,T19-16)/100) ->  | V19: 0 | W19: 0 | X19: 0
B20: 8 | N20: 0 | Q20: 0 | R20: 0 | U20: =IF(OR(S20="",T20=""),"",VLOOKUP(CONCATENATE(S20," dienų darbo savaitė"),'Atostogų išmokų FN'!$A$7:$AH$8,T20-16)/100) ->  | V20: 0 | W20: 0 | X20: 0
B21: 9 | N21: 0 | Q21: 0 | R21: 0 | U21: =IF(OR(S21="",T21=""),"",VLOOKUP(CONCATENATE(S21," dienų darbo savaitė"),'Atostogų išmokų FN'!$A$7:$AH$8,T21-16)/100) ->  | V21: 0 | W21: 0 | X21: 0
B22: 10 | N22: 0 | Q22: 0 | R22: 0 | U22: =IF(OR(S22="",T22=""),"",VLOOKUP(CONCATENATE(S22," dienų darbo savaitė"),'Atostogų išmokų FN'!$A$7:$AH$8,T22-16)/100) ->  | V22: 0 | W22: 0 | X22: 0
B23: Iš viso: | J23: =SUBTOTAL(9, INDIRECT(ADDRESS(13, COLUMN()) & ":" & ADDRESS(ROW() - 1, COLUMN()))) -> 0 | K23: =SUBTOTAL(9, INDIRECT(ADDRESS(13, COLUMN()) & ":" & ADDRESS(ROW() - 1, COLUMN()))) -> 0 | L23: =SUBTOTAL(9, INDIRECT(ADDRESS(13, COLUMN()) & ":" & ADDRESS(ROW() - 1, COLUMN()))) -> 0 | N23: =SUBTOTAL(9, INDIRECT(ADDRESS(13, COLUMN()) & ":" & ADDRESS(ROW() - 1, COLUMN()))) -> 0 | O23: =SUBTOTAL(9,O13:O15) -> 0 | Q23: =SUBTOTAL(9, INDIRECT(ADDRESS(13, COLUMN()) & ":" & ADDRESS(ROW() - 1, COLUMN()))) -> 0 | R23: =SUBTOTAL(9, INDIRECT(ADDRESS(13, COLUMN()) & ":" & ADDRESS(ROW() - 1, COLUMN()))) -> 0 | V23: =SUBTOTAL(9, INDIRECT(ADDRESS(13, COLUMN()) & ":" & ADDRESS(ROW() - 1, COLUMN()))) -> 0 | W23: =SUBTOTAL(9, INDIRECT(ADDRESS(13, COLUMN()) & ":" & ADDRESS(ROW() - 1, COLUMN()))) -> 0 | X23: =SUBTOTAL(9, INDIRECT(ADDRESS(13, COLUMN()) & ":" & ADDRESS(ROW() - 1, COLUMN()))) -> 0
B25: (1) Organizacijos tipas pasirenkamas iš sąrašo. Atsižvelgiant į pasirinktą organizacijos tipą, nurodomas bendras įmokų tarifas Garantiniam fondui, Ilgalaikio darbo išmokų fondui ir Nelaimingų atsitikimų darbe ir profesinių ligų socialiniam draudimui.
B26: (2) Taikoma viešosioms įstaigoms, UAB, AB ir kt.
B27: (3) Taikoma politinėms partijoms, profesinėms sąjungoms, religinėms bendruomenėms ir bendrijoms.
B28: (4) analogiškos arba tos pačios pareigos/funkcijos įstaigoje. Jei įstaigoje nėra projekte numatomos pareigybės atitikmens ir istorinių duomenų, darbo užmokesčio dydis gali būti pagrįstas, remiantis oficialiosios statistikos portale (Rodiklių duomenų bazė) Valstybės duomenų agentūros skelbiamais naujausiais statistiniais darbuotojų vidutinio darbo užmokesčio duomenimis
B29: https://osp.stat.gov.lt/statistiniu-rodikliu-analize?indicator=S3R0049#/ valandinis bruto
B30: https://osp.stat.gov.lt/statistiniu-rodikliu-analize?indicator=S3R0050#/ mėnesinis bruto
B31: (5) Planuojamas priedas ar priemoka turi atitikti Rekomendacijų dėl projektų išlaidų atitikties Europos Sąjungos fondų reikalavimų 9.5. p. nurodytus tinkamų finansuoti išlaidų reikalavimus;
B32: (6) Skaičiuojant planuojamą darbo valandos (mėnesio) įkainį gali būti įvertinamas numatomas įkainio kitimas projekto įgyvendinimo metu, remiantis Lietuvos banko interneto svetainėje lb.lt skelbiamomis naujausiomis darbo užmokesčio prognozėmis. Tačiau įgyvendinant projektą darbo užmokesčio padidėjimas turi būti pagrįstas ir visais atvejais atitikti Projektų administravimo ir finansavimo taisyklių (Taisyklių) 301.1 papunkčio reikalavimus (netaikoma ein. metams):
B33: https://www.lb.lt/lt/mv-ekonomikos-analize-ir-prognozes
B34: (7) Pagal Taisyklių 301.1. p. darbo užmokesčio išlaidos yra tinkamos finansuoti, jei jų dydis atitinka įprastą projekto vykdytojo, partnerio arba JP projekto vykdytojo darbo užmokesčio praktiką atitinkamos kategorijos pareigoms arba pagal taikomą nacionalinę teisę, kolektyvines sutartis ar oficialią statistiką. DU įkainio pagrindimui pateikti darbo užmokesčio dydį pagrindžiančius dokumentus (pvz.: nuasmenintas darbo sutartis, kurios sudarytos ne šiam projektui, o bendrai įstaigos praktikoje; įstaigos DU priskaitymo ir išmokėjimo žiniaraščius 3- 12 mėn. (kuriuose matytųsi pareigos, dirbtas laikas, priskaitytas DU, priedai ir priemokos (jei taikoma); kt.). Biudžete numatytų išlaidų dydis turi neviršyti įprastai įstaigoje mokamo darbo užmokesčio dydžių tam tikrai pareigybei.

Sheet Pažyma biudžetinėms pvz.
B1: ATKREIPIAME DĖMESĮ ! 1. Lentelėje turi būti pildomi tik balti laukeliai (pagal PĮP informaciją) 2. Užpildę formą, išsaugokite ją MS Excel bylos formatu (.xlsx). Per DMS galima pateikti šį dokumentą tik .xlsx formatu | M1: F-PRV-PV-11(ES(2021-2027)/02 | V1: 0.1044
F2: PAŽYMA DARBO UŽMOKESČIO APSKAIČIAVIMUI (pavyzdys)
V3: 0.1235
B4: Pareiškėjo / Jungtinio projekto pareiškėjo / projekto partnerio pavadinimas (partneriai pildo atskiras lenteles, kiek patnerių, tiek lentelių) | V4: 0.1725
V5: 0.1889
B6: INFORMACIJA APIE PLANUOJAMĄ DARBO UŽMOKESTĮ (DU) | V6: 0.2002
B7: Organizacijos tipas (1) | H7: Biudžetinė | I7: =+IF(H7="Biudžetinė",0.0014,IF(H7="Verslo įm. ir kt.",0.0046,IF(H7="Kitos organizacijos**",0.003,0))) -> 0.0014
B9: Eil. Nr. | C9: Projekto poveiklės Nr. (iš PĮP) | D9: Veiksmo / išlaidų tipo Nr. (iš PĮP) | E9: Pareigos PĮP | F9: Planuojamas etatų/ darbuotojų skaičius projekte | G9: Darbo sutarties tipas (nuo tipo priklauso įmokos tarifas Nedarbo socialiniam draudimui) | H9: Metai, už kuriuos planuojamas DU (pildoma, jei taikomas padidėjimas) | I9: Planuojamų mėn. / valandų skaičius (palikti taikomą) | J9: Planuojamas pareiginis DU/ valandinis įkainis, Eur (palikti taikomą) (2) | K9: Priedai ir priemokos, Eur (3) | L9: Padidėjimas, proc. (jei taikoma) (4) | M9: Padidėjimo suma, Eur (jei taikoma) | N9: Planuojamas DU įkainis be darbdavio įmokų iš viso, Eur | O9: Planuojams DU įkainis, Eur (su darbdavio įmokomis) | P9: Darbo savaitės trukmė darbo dienomis | Q9: Kasmetinių atostogų darbo dienų skaičius | R9: Nustatyta kasmetinių atostogų išmokų fiksuotoji norma | S9: Planuojamos kasmetinių atostogų sąnaudos (įskaitant darbdavio įmokas), Eur | T9: Planuojamas DU įkainis iš viso, Eur (su darbdavio įmokomis ir kasm. atost. ) | U9: Planuojama DU suma iš viso, Eur | V9: DU įkainio pagrindimas (5)
B12: 1 | C12: 2 | D12: 3 | E12: 4 | F12: 5 | G12: 6 | H12: 7 | I12: 8 | J12: 9 | K12: 10 | L12: 11 | M12: 12 | N12: 13=9+10+12 | O12: 14 | P12: 15 | Q12: 16 | R12: 17 | S12: 18 | T12: 19=14+18 | U12: 20=5*8*19 | V12: 21
B13: =ROW(A1) -> 1 | C13: 1.2. | D13: 1.2.1. | E13: Analitikas | F13: 3 | G13: Terminuota | I13: 36 | J13: =1.3*1785.4 -> 2321.02 | M13: =(+J13+K13)*L13 -> 0 | N13: =ROUND(J13+K13+M13,2) -> 2321.02 | O13: =ROUND(IF($I$7=0%,0,(IF(G13="Terminuota",(1+$I$7+0.0203)*(J13+K13+M13),(1+$I$7+0.0131)*(J13+K13+M13)))),2) -> 2371.39 | P13: 5 | Q13: 20 | R13: =IF(OR(P13="",Q13=""),"",VLOOKUP(CONCATENATE(P13," dienų darbo savaitė"),'Atostogų išmokų FN'!$A$7:$AH$8,Q13-16)/100) -> 0.0863 | S13: =IF(O13=0,0,ROUND((O13*R13),2)) -> 204.65 | T13: =SUM(O13+S13) -> 2576.04 | U13: =SUM(F13*I13*T13) -> 278212.32 | V13: Pvz.: taikomas koeficientas 9, plius kintamas priedas 20 proc., plius 30 proc. priemoka už ...... arba taikomas koef. 16, nes pareigos (IT specialistas - koeficientas 8) patenka į trūkstamų pareigybių sąrašą, ir t.t.
B14: =ROW(A2) -> 2 | C14: 1.2. | D14: 1.2.1. | E14: Ekspertas | F14: 1 | G14: Terminuota | H14: 2024 | I14: 8 | K14: =9*186*0.2 -> 334.8 | L14: 0.05 | M14: =(+J14+K14)*L14 -> 16.74 | N14: =ROUND(J14+K14+M14,2) -> 351.54 | O14: =ROUND(IF($I$7=0%,0,(IF(G14="Terminuota",(1+$I$7+0.0203)*(J14+K14+M14),(1+$I$7+0.0131)*(J14+K14+M14)))),2) -> 359.17 | P14: 5 | Q14: 32 | R14: =IF(OR(P14="",Q14=""),"",VLOOKUP(CONCATENATE(P14," dienų darbo savaitė"),'Atostogų išmokų FN'!$A$7:$AH$8,Q14-16)/100) -> 0.1499 | S14: 53.84 | T14: =SUM(O14+S14) -> 413.01 | U14: 3304.08 | V14: Valstybės tarnautojas, taikoma 20 proc. priemoka nuo pareiginio DU , vadovaujantis .... (kai įdarbinamas valstybės tarnautojas, įrašykite taikomą koeficiento dydį x BMA x priemokos proc.)
B15: 3 | C15: 1.4. | D15: 1.4.1. | E15: Projekto specialistas | F15: 1 | G15: Neterminuota | H15: 2025 | I15: 10 | J15: =1.1*1785.4 -> 1963.94 | K15: =9*186*0.2 -> 334.8 | L15: 0.05 | M15: =(+J15+K15)*L15 -> 114.937 | N15: =ROUND(J15+K15+M15,2) -> 2413.68 | O15: =ROUND(IF($I$7=0%,0,(IF(G15="Terminuota",(1+$I$7+0.0203)*(J15+K15+M15),(1+$I$7+0.0131)*(J15+K15+M15)))),2) -> 2448.68 | P15: 5 | Q15: 20 | R15: =IF(OR(P15="",Q15=""),"",VLOOKUP(CONCATENATE(P15," dienų darbo savaitė"),'Atostogų išmokų FN'!$A$7:$AH$8,Q15-16)/100) -> 0.0863 | S15: 211.32 | T15: 2660 | U15: 26600
B16: 4 | M16: 0 | N16: 0 | O16: 0 | R16: =IF(OR(P16="",Q16=""),"",VLOOKUP(CONCATENATE(P16," dienų darbo savaitė"),'Atostogų išmokų FN'!$A$7:$AH$8,Q16-16)/100) ->  | S16: 0 | T16: 0 | U16: 0
B17: 5 | M17: 0 | N17: 0 | O17: 0 | R17: =IF(OR(P17="",Q17=""),"",VLOOKUP(CONCATENATE(P17," dienų darbo savaitė"),'Atostogų išmokų FN'!$A$7:$AH$8,Q17-16)/100) ->  | S17: 0 | T17: 0 | U17: 0
B18: 6 | M18: 0 | N18: 0 | O18: 0 | R18: =IF(OR(P18="",Q18=""),"",VLOOKUP(CONCATENATE(P18," dienų darbo savaitė"),'Atostogų išmokų FN'!$A$7:$AH$8,Q18-16)/100) ->  | S18: 0 | T18: 0 | U18: 0
B19: 7 | M19: 0 | N19: 0 | O19: 0 | R19: =IF(OR(P19="",Q19=""),"",VLOOKUP(CONCATENATE(P19," dienų darbo savaitė"),'Atostogų išmokų FN'!$A$7:$AH$8,Q19-16)/100) ->  | S19: 0 | T19: 0 | U19: 0
B20: 8 | M20: 0 | N20: 0 | O20: 0 | R20: =IF(OR(P20="",Q20=""),"",VLOOKUP(CONCATENATE(P20," dienų darbo savaitė"),'Atostogų išmokų FN'!$A$7:$AH$8,Q20-16)/100) ->  | S20: 0 | T20: 0 | U20: 0
B21: 9 | M21: 0 | N21: 0 | O21: 0 | R21: =IF(OR(P21="",Q21=""),"",VLOOKUP(CONCATENATE(P21," dienų darbo savaitė"),'Atostogų išmokų FN'!$A$7:$AH$8,Q21-16)/100) ->  | S21: 0 | T21: 0 | U21: 0
B22: 10 | M22: 0 | N22: 0 | O22: 0 | R22: =IF(OR(P22="",Q22=""),"",VLOOKUP(CONCATENATE(P22," dienų darbo savaitė"),'Atostogų išmokų FN'!$A$7:$AH$8,Q22-16)/100) ->  | S22: 0 | T22: 0 | U22: 0
B23: Iš viso: | I23: =SUBTOTAL(9,I13:I22) -> 54 | J23: =SUBTOTAL(9,J13:J22) -> 4284.96 | K23: =SUBTOTAL(9,K13:K22) -> 669.6 | M23: =SUBTOTAL(9,M13:M22) -> 131.677 | N23: =SUBTOTAL(9,N13:N22) -> 5086.24 | O23: =SUBTOTAL(9,O13:O22) -> 5179.24 | S23: =SUBTOTAL(9,S13:S22) -> 469.81 | U23: =SUBTOTAL(9,U13:U22) -> 308116.4
B25: (1) Atsižvelgiant į pasirinktą organizacijos tipą, nurodomas bendras įmokų tarifas Garantiniam fondui, Ilgalaikio darbo išmokų fondui ir Nelaimingų atsitikimų darbe ir profesinių ligų socialiniam draudimui.
B26: (2) Pareiginė alga apskaičiuojama pareiginės algos koeficientą dauginant iš pareiginės algos (atlyginimo) bazinio dydžio, kuris pavyzdžiui 2024 m. yra 1 785,4 euro. Šiame langelyje įrašykite taikomą koeficiento dydį x pareiginės algos (atlyginimo) bazinis dydį.
B27: (3) Jei mokamas priedas ar priemoka, nurodyti pagrindą bei pakomentuoti, už ką konkrečiai (išskyrus netinkamas išlaidas, nurodytas Rekomendacijų dėl projektų išlaidų atitikties Europos Sąjungos fondų reikalavimų 9.5. p.). Jei projekte įdarbinami valstybės tarnautojai, nurodyti taikomą priemokos dydį, kuris turėtų neviršyti LR valstybės tarnybos įstatyme numatytų dydžių.
B28: https://www.e-tar.lt/portal/lt/legalAct/TAR.D3ED3792F52B/asr
B29: (4) Skaičiuojant planuojamą darbo valandos (mėnesio) įkainį gali būti įvertinamas numatomas įkainio kitimas projekto įgyvendinimo metu, remiantis Lietuvos banko interneto svetainėje lb.lt skelbiamomis naujausiomis darbo užmokesčio prognozėmis. Tačiau įgyvendinant projektą darbo užmokesčio padidėjimas turi būti pagrįstas ir visais atvejais atitikti Projektų administravimo ir finansavimo taisyklių 301.1 papunkčio reikalavimus (netaikoma einamiesiems metams):
B30: https://www.lb.lt/lt/mv-ekonomikos-analize-ir-prognozes
B31: (5) Biudžetinių įstaigų atvejais - pagrįsti, ar suplanuotoms pareigybėms nustatytas darbo užmokesčio dydis atitinka LR valstybės ir savivaldybių įstaigų darbuotojų darbo apmokėjimo ir komisijos narių atlygio darbą įstatyme ar kt.:
B33: Jei viršija koeficientą, pateikti papildomą pagrindimą (pvz.: pareigybės įtrauktos į trūkstamų pareigybių sąrašą (nurodant profesijos pavadinimą arba kodą iš sąrašo) arba kt.)

Sheet Pažyma kitos (nebiudžet.) pvz.
B1: ATKREIPIAME DĖMESĮ ! 1. Lentelėje turi būti pildomi tik balti laukeliai (pagal PĮP informaciją) 2. Užpildę formą, išsaugokite ją MS Excel bylos formatu (.xlsx). Per DMS galima pateikti šį dokumentą tik .xlsx formatu | L1: F-PRV-PV-11(ES(2021-2027)/02
Y3: 0.1044
F4: PAŽYMA DARBO UŽMOKESČIO APSKAIČIAVIMUI (pavyzdys)
Y5: 0.1235
B6: Pareiškėjo / Jungtinio projekto pareiškėjo / projekto partnerio pavadinimas (partneriai pildo atskiras lenteles, kiek patnerių, tiek lentelių) | Y6: 0.1725
Y7: 0.1889
B8: INFORMACIJA APIE PLANUOJAMĄ DARBO UŽMOKESTĮ (DU) | Y8: 0.2002
B9: Organizacijos tipas (1) | I9: Verslo įm. ir kt.(2) | J9: =+IF(I9="Biudžetinė",0.0014,IF(I9="Verslo įm. ir kt.(2)",0.0046,IF(I9="Kitos organizacijos(3)",0.003,0))) -> 0.0046
B11: Eil. Nr. | C11: Projekto poveiklės Nr. (iš PĮP) | D11: Veiksmo / išlaidų tipo Nr. (iš PĮP) | E11: Pareigos PĮP | F11: Pareigos / Pareigybė įstaigoje, kurios duomenimis grindžiamas įkainis (4) | G11: Planuojamas etatų/ darbuotojų skaičius projekte | H11: Darbo sutarties tipas (nuo tipo priklauso įmokos tarifas Nedarbo socialiniam draudimui) | I11: Metai, už kuriuos planuojamas DU (pildoma, jei taikomas padidėjimas) | J11: Planuojamų mėn. / valandų skaičius | K11: Planuojamas pareiginis DU/ valandinis įkainis, Eur | L11: Priedai ir priemokos, Eur (5) | M11: Padidėjimas, proc. (jei taikoma) (6) | N11: Padidėjimo suma, Eur (jei taikoma) | Q11: Planuojamas DU įkainis be darbdavio įmokų iš viso, Eur | R11: Planuojams DU įkainis su darbdavio įmokomis iš viso, Eur | S11: Darbo savaitės trukmė darbo dienomis | T11: Kasmetinių atostogų darbo dienų skaičius | U11: Nustatyta kasmetinių atostogų išmokų fiksuotoji norma | V11: Planuojamos kasmetinių atostogų sąnaudos (įskaitant darbdavio įmokas), Eur | W11: Planuojamas DU įkainis iš viso, Eur (su darbdavio įmokomis ir kasm. atost. ) | X11: Planuojama DU suma iš viso, Eur | Y11: DU įkainio pagrindimas (7)
B14: 1 | C14: 2 | D14: 3 | E14: 4 | F14: 5 | G14: 6 | H14: 7 | I14: 8 | J14: 9 | K14: 10 | L14: 11 | M14: 12 | N14: 13 | O14: 15 | P14: 16 | Q14: 14=10+11+13 | R14: 15 | S14: 16 | T14: 17 | U14: 18 | V14: 19 | W14: 20=15+19 | X14: 21=6*9*20 | Y14: 22
B15: =ROW(A1) -> 1 | C15: 1.2. | D15: 1.2.1. | E15: Ekspertas | F15: Ekspertas | G15: 1 | H15: Terminuota | J15: 36 | K15: =1000 -> 1000 | L15: =+K15*0.2 -> 200 | M15: 0 | N15: =ROUND((+K15+L15)*M15,2) -> 0 | Q15: =ROUND(K15+L15+N15+O15+P15,2) -> 1200 | R15: =ROUND(IF($J$9=0%,0,(IF(H15="Terminuota",(1+$J$9+0.0203)*(K15+L15+N15+P15+O15),(1+$J$9+0.0131)*(K15+L15+N15+P15+O15)))),2) -> 1229.88 | S15: 5 | T15: 20 | U15: =IF(OR(S15="",T15=""),"",VLOOKUP(CONCATENATE(S15," dienų darbo savaitė"),'Atostogų išmokų FN'!$A$7:$AH$8,T15-16)/100) -> 0.0863 | V15: =IF(R15=0,0,ROUND((R15*U15),2)) -> 106.14 | W15: =SUM(R15+V15) -> 1336.02 | X15: =SUM(G15*J15*W15) -> 48096.72 | Y15: pvz. darbo sutartis Nr. 2333, DU pažyma Nr. 1, .....
B16: =ROW(A2) -> 2 | C16: 1.2. | D16: 1.2.1. | E16: Analitikas | F16: Inžinierius | G16: 1 | H16: Terminuota | I16: 2024 | J16: 100 | K16: 25 | L16: 0 | M16: 0.08 | N16: =ROUND((+K16+L16)*M16,2) -> 2 | Q16: =ROUND(K16+L16+N16+O16+P16,2) -> 27 | R16: 27.67 | S16: 5 | T16: 41 | U16: =IF(OR(S16="",T16=""),"",VLOOKUP(CONCATENATE(S16," dienų darbo savaitė"),'Atostogų išmokų FN'!$A$7:$AH$8,T16-16)/100) -> 0.2002 | V16: 5.54 | W16: 33.21 | X16: 3321
B17: =ROW(A3) -> 3 | C17: 1.4. | D17: 1.4.1. | E17: Projekto specialistas | F17: Specialistas | G17: 0.5 | H17: Neterminuota | J17: 300 | K17: =15 -> 15 | L17: 0 | M17: 0 | N17: 0 | Q17: =ROUND(K17+L17+N17+O17+P17,2) -> 15 | R17: 15.27 | S17: 5 | T17: 20 | U17: =IF(OR(S17="",T17=""),"",VLOOKUP(CONCATENATE(S17," dienų darbo savaitė"),'Atostogų išmokų FN'!$A$7:$AH$8,T17-16)/100) -> 0.0863 | V17: 1.32 | W17: 16.59 | X17: 2488.5
B18: 4 | N18: 0 | Q18: =ROUND(K18+L18+N18+O18+P18,2) -> 0 | R18: 0 | U18: =IF(OR(S18="",T18=""),"",VLOOKUP(CONCATENATE(S18," dienų darbo savaitė"),'Atostogų išmokų FN'!$A$7:$AH$8,T18-16)/100) ->  | V18: 0 | W18: 0 | X18: 0
B19: 5 | N19: 0 | Q19: 0 | R19: 0 | U19: =IF(OR(S19="",T19=""),"",VLOOKUP(CONCATENATE(S19," dienų darbo savaitė"),'Atostogų išmokų FN'!$A$7:$AH$8,T19-16)/100) ->  | V19: 0 | W19: 0 | X19: 0
B20: 6 | N20: 0 | Q20: 0 | R20: 0 | U20: =IF(OR(S20="",T20=""),"",VLOOKUP(CONCATENATE(S20," dienų darbo savaitė"),'Atostogų išmokų FN'!$A$7:$AH$8,T20-16)/100) ->  | V20: 0 | W20: 0 | X20: 0
B21: 7 | N21: 0 | Q21: 0 | R21: 0 | U21: =IF(OR(S21="",T21=""),"",VLOOKUP(CONCATENATE(S21," dienų darbo savaitė"),'Atostogų išmokų FN'!$A$7:$AH$8,T21-16)/100) ->  | V21: 0 | W21: 0 | X21: 0
B22: 8 | N22: 0 | Q22: 0 | R22: 0 | U22: =IF(OR(S22="",T22=""),"",VLOOKUP(CONCATENATE(S22," dienų darbo savaitė"),'Atostogų išmokų FN'!$A$7:$AH$8,T22-16)/100) ->  | V22: 0 | W22: 0 | X22: 0
B23: 9 | N23: 0 | Q23: 0 | R23: 0 | U23: =IF(OR(S23="",T23=""),"",VLOOKUP(CONCATENATE(S23," dienų darbo savaitė"),'Atostogų išmokų FN'!$A$7:$AH$8,T23-16)/100) ->  | V23: 0 | W23: 0 | X23: 0
B24: 10 | N24: 0 | Q24: 0 | R24: 0 | U24: =IF(OR(S24="",T24=""),"",VLOOKUP(CONCATENATE(S24," dienų darbo savaitė"),'Atostogų išmokų FN'!$A$7:$AH$8,T24-16)/100) ->  | V24: 0 | W24: 0 | X24: 0
B25: Iš viso: | J25: =SUBTOTAL(9,J15:J24) -> 436 | K25: =SUBTOTAL(9,K15:K24) -> 1040 | L25: =SUBTOTAL(9,L15:L24) -> 200 | N25: =SUBTOTAL(9,N15:N24) -> 2 | O25: =SUBTOTAL(9,O15:O24) -> 0 | Q25: =SUBTOTAL(9,Q15:Q24) -> 1242 | R25: =SUBTOTAL(9,R15:R24) -> 1272.82 | V25: =SUBTOTAL(9,V15:V24) -> 113 | W25: =SUBTOTAL(9,W15:W24) -> 1385.82 | X25: =SUBTOTAL(9,X15:X24) -> 53906.22
B27: (1) Organizacijos tipas pasirenkamas iš sąrašo. Atsižvelgiant į pasirinktą organizacijos tipą, nurodomas bendras įmokų tarifas Garantiniam fondui, Ilgalaikio darbo išmokų fondui ir Nelaimingų atsitikimų darbe ir profesinių ligų socialiniam draudimui.
B28: (2) Taikoma viešosioms įstaigoms, UAB, AB ir kt.
B29: (3) Taikoma politinėms partijoms, profesinėms sąjungoms, religinėms bendruomenėms ir bendrijoms.
B30: (4) analogiškos arba tos pačios pareigos/funkcijos įstaigoje. Jei įstaigoje nėra projekte numatomos pareigybės atitikmens ir istorinių duomenų, darbo užmokesčio dydis gali būti pagrįstas, remiantis oficialiosios statistikos portale (Rodiklių duomenų bazė) Valstybės duomenų agentūros skelbiamais naujausiais statistiniais darbuotojų vidutinio darbo užmokesčio duomenimis
B31: https://osp.stat.gov.lt/statistiniu-rodikliu-analize?indicator=S3R0049#/ valandinis bruto
B32: https://osp.stat.gov.lt/statistiniu-rodikliu-analize?indicator=S3R0050#/ mėnesinis bruto
B33: (5) Planuojamas priedas ar priemoka turi atitikti Rekomendacijų dėl projektų išlaidų atitikties Europos Sąjungos fondų reikalavimų 9.5. p. nurodytus tinkamų finansuoti išlaidų reikalavimus;
B34: (6) Skaičiuojant planuojamą darbo valandos (mėnesio) įkainį gali būti įvertinamas numatomas įkainio kitimas projekto įgyvendinimo metu, remiantis Lietuvos banko interneto svetainėje lb.lt skelbiamomis naujausiomis darbo užmokesčio prognozėmis. Tačiau įgyvendinant projektą darbo užmokesčio padidėjimas turi būti pagrįstas ir visais atvejais atitikti Projektų administravimo ir finansavimo taisyklių (Taisyklių) 301.1 papunkčio reikalavimus (netaikoma ein. metams):
B35: https://www.lb.lt/lt/mv-ekonomikos-analize-ir-prognozes
B36: (7) Pagal Taisyklių 301.1. p. darbo užmokesčio išlaidos yra tinkamos finansuoti, jei jų dydis atitinka įprastą projekto vykdytojo, partnerio arba JP projekto vykdytojo darbo užmokesčio praktiką atitinkamos kategorijos pareigoms arba pagal taikomą nacionalinę teisę, kolektyvines sutartis ar oficialią statistiką. DU įkainio pagrindimui pateikti darbo užmokesčio dydį pagrindžiančius dokumentus (pvz.: nuasmenintas darbo sutartis, kurios sudarytos ne šiam projektui, o bendrai įstaigos praktikoje; įstaigos DU priskaitymo ir išmokėjimo žiniaraščius 3- 12 mėn. (kuriuose matytųsi pareigos, dirbtas laikas, priskaitytas DU, priedai ir priemokos (jei taikoma); kt.). Biudžete numatytų išlaidų dydis turi neviršyti įprastai įstaigoje mokamo darbo užmokesčio dydžių tam tikrai pareigybei.

Sheet Atostogų išmokų FN (hidden)
A2: KASMETINIŲ ATOSTOGŲ IŠMOKŲ FIKSUOTOSIOS NORMOS
A4: Kasmetinių atostogų išmokų fiksuotosios normos, taikomos nuo 2017 m. liepos 1 d. darbuotojams, kuriems kasmetinės atostogos skaičiuojamos darbo dienomis
A5: Darbo savaitės trukmė | D5: Kasmetinių atostogų išmokų fiksuotosios normos nuo tinkamų finansuoti darbo užmokesčio išlaidų, kai kasmetinių atostogų darbo dienų skaičius yra:
D6: 20 | E6: 21 | F6: 22 | G6: 23 | H6: 24 | I6: 25 | J6: 26 | K6: 27 | L6: 28 | M6: 29 | N6: 30 | O6: 31 | P6: 32 | Q6: 33 | R6: 34 | S6: 35 | T6: 36 | U6: 37 | V6: 38 | W6: 39 | X6: 40 | Y6: 41 | Z6: 42 | AA6: 43 | AB6: 44 | AC6: 45 | AD6: 46 | AE6: 47 | AF6: 48 | AG6: 49 | AH6: 50
A7: 5 dienų darbo savaitė | D7: 8.63 | E7: 10.44 | F7: 10.44 | G7: 10.44 | H7: 10.44 | I7: 10.44 | J7: 12.35 | K7: 12.35 | L7: 12.35 | M7: 12.35 | N7: 12.35 | O7: 14.99 | P7: 14.99 | Q7: 14.99 | R7: 14.99 | S7: 14.99 | T7: 14.99 | U7: 17.25 | V7: 17.25 | W7: 17.25 | X7: 18.89 | Y7: 20.02 | Z7: 20.02 | AA7: 20.02 | AB7: 20.02 | AC7: 20.02 | AD7: 20.02 | AE7: 20.02 | AF7: 20.02 | AG7: 20.02 | AH7: 20.02
A8: 6 dienų darbo savaitė | D8: 0 | E8: 0 | F8: 0 | G8: 0 | H8: 8.63 | I8: 10.44 | J8: 10.44 | K8: 10.44 | L8: 10.44 | M8: 10.44 | N8: 10.44 | O8: 12.35 | P8: 12.35 | Q8: 12.35 | R8: 12.35 | S8: 12.35 | T8: 12.35 | U8: 14.99 | V8: 14.99 | W8: 14.99 | X8: 14.99 | Y8: 14.99 | Z8: 14.99 | AA8: 17.25 | AB8: 17.25 | AC8: 17.25 | AD8: 17.25 | AE8: 17.25 | AF8: 18.89 | AG8: 20.02 | AH8: 20.02
A11: Fiksuotosios normos dydis | B11: FN taikymo sąlygos
A12: FN-05-01 – 8,63 proc. | B12: Taikoma, kai priklauso 20 d. d. (jeigu dirbama 5 d. d. per savaitę) arba 24 d. d. (jeigu dirbama 6 d. d. per savaitę) kasmetinės atostogos.
A13: FN-05-02 – 10,44 proc. | B13: Taikoma, kai priklauso nuo 21 iki 25 d. d. (jeigu dirbama 5 d. d. per savaitę) arba nuo 25 iki 30 d. d. (jeigu dirbama 6 d. d. per savaitę) kasmetinės atostogos
A14: FN-05-03 – 12,35 proc. | B14: Taikoma, kai priklauso nuo 26 iki 30 d. d. (jeigu dirbama 5 d. d. per savaitę) arba nuo 31 iki 36 d. d. (jeigu dirbama 6 d. d. per savaitę) kasmetinės atostogos
A15: FN-05-04 – 14,99 proc. | B15: Taikoma, kai priklauso nuo 31 iki 36 d. d. (jeigu dirbama 5 d. d. per savaitę) arba nuo 37 iki 42 d. d. (jeigu dirbama 6 d. d. per savaitę) kasmetinės atostogos
A16: FN-05-05 – 17,25 proc. | B16: Taikoma, kai priklauso nuo 37 iki 39 d. d. (jeigu dirbama 5 d. d. per savaitę) arba nuo 43 iki 47 d. d. (jeigu dirbama 6 d. d. per savaitę) kasmetinės atostogos
A17: FN-05-06 – 18,89 proc. | B17: Taikoma, kai priklauso 40 d. d. (jeigu dirbama 5 d. d. per savaitę) arba 48 d. d. (jeigu dirbama 6 d. d. per savaitę) kasmetinės atostogos
A18: FN-05-07 – 20,02 proc. | B18: Taikoma, kai priklauso nuo 41 d. d. (jeigu dirbama 5 d. d. per savaitę) arba nuo 49 d. d. (jeigu dirbama 6 d. d. per savaitę) kasmetinės atostogos

Sheet Papild.poilsio d. išmokų FN (hidden)
A1: KASMETINIŲ ATOSTOGŲ IŠMOKŲ FIKSUOTŲJŲ NORMŲ NUSTATYMO TYRIMO ATASKAITOS
A2: 3 priedas. Papildomų poilsio dienų išmokų fiksuotosios normos
A5: Darbo savaitės trukmė | B5: Vidutinis mėnesio darbo valandų skaičius | C5: Papildomų poilsio dienų išmokų fiksuotosios normos nuo tinkamų finansuoti darbo užmokesčio išlaidų, kai papildomų poilsio dienų skaičius per mėnesį yra (dienomis/valandomis):
C6: 0.5 | D6: 1 | E6: 1.5 | F6: 2 | G6: 2.5 | H6: 3 | I6: 3.5 | J6: 4 | K6: 4.5 | L6: 5 | M6: 6 | N6: 7 | O6: 8 | P6: 9 | Q6: 10
C7: 4 | D7: 8 | E7: 12 | F7: 16 | G7: 20 | H7: 24 | I7: 28 | J7: 32 | K7: 36 | L7: 40 | M7: 48 | N7: 56 | O7: 64 | P7: 72 | Q7: 80
A8: Bendra (5 ir 6 d.d. savaitė) | B8: 167.3 | C8: =ROUND(C7/($B$8-C7)*100,2) -> 2.45 | D8: 5.02 | E8: 7.73 | F8: 10.58 | G8: 13.58 | H8: 16.75 | I8: 20.1 | J8: 23.65 | K8: 27.42 | L8: 31.42 | M8: 40.23 | N8: 50.31 | O8: 61.96 | P8: 75.55 | Q8: 91.64
